fUST/lending_fUST_20250918
["ID","MTS","AMOUNT","RATE_DAILY","PERIOD"]
[385990372,1758174638601,-483.32,0.00023774,3]
[385990374,1758174638610,-552.71,0.00024047,3]
[385990376,1758174638620,-500.0,0.00024047,2]
[385990378,1758174638629,-202.81260454,0.00024047,2]
[385990380,1758174638638,-336.92976906,0.00024047,2]
[385990381,1758174638647,-500.0,0.00024047,2]
[385990382,1758174638658,-224.66129816,0.00024047,2]
[385990383,1758174638667,-500.0,0.00024047,2]
[385990384,1758174638677,-500.0,0.00024047,2]
[385990386,1758174638686,-500.0,0.00024047,2]
[385990387,1758174638696,-500.0,0.00024047,2]
[385990389,1758174638704,-500.0,0.00024047,2]
[385990391,1758174638713,-500.0,0.00024047,2]
[385990392,1758174638722,-500.0,0.00024047,2]
[385990394,1758174638731,-500.0,0.00024047,2]
[385990396,1758174638740,-500.0,0.00024047,2]
[385990397,1758174638749,-500.0,0.00024047,2]
[385990398,1758174638758,-371.42061824,0.00024047,2]
[385990399,1758174638768,-500.0,0.00024047,2]
[385990400,1758174638777,-500.0,0.00024047,2]
[385990402,1758174638786,-500.0,0.00024047,2]
[385990403,1758174638795,-500.0,0.00024047,2]
[385990404,1758174638804,-500.0,0.00024047,2]
[385990405,1758174638813,-500.0,0.00024047,2]
[385990406,1758174638822,-500.0,0.00024047,2]
[385990407,1758174638832,-500.0,0.00024047,2]
[385990409,1758174638841,-500.0,0.00024047,2]
[385990410,1758174638850,-306.09509764,0.00024047,2]
[385990411,1758174638862,-193.90490236,0.00024047,2]
[385990412,1758174638871,-500.0,0.00024047,2]
[385990413,1758174638880,-500.0,0.00024047,2]
[385990415,1758174638889,-500.0,0.00024047,2]
[385990416,1758174638899,-500.0,0.00024047,2]
[385990417,1758174638910,-500.0,0.00024047,2]
[385990418,1758174638919,-500.0,0.00024047,2]
[385990419,1758174638928,-500.0,0.00024047,2]
[385990420,1758174638937,-500.0,0.00024047,2]
[385990421,1758174638947,-500.0,0.00024047,2]
[385990422,1758174638958,-500.0,0.00024047,2]
[385990423,1758174638967,-500.0,0.00024047,2]
[385990424,1758174638977,-500.0,0.00024047,2]
[385990425,1758174638986,-500.0,0.00024047,2]
[385990426,1758174638995,-500.0,0.00024047,2]
[385990427,1758174639005,-500.0,0.00024047,2]
[385990428,1758174639014,-225.31518719,0.00024047,2]
[385990429,1758174639025,-274.68481281,0.00024047,2]
[385990430,1758174639034,-500.0,0.00024047,2]
[385990431,1758174639043,-500.0,0.00024047,2]
[385990432,1758174639053,-500.0,0.00024047,2]
[385990433,1758174639065,-500.0,0.00024047,2]
[385990434,1758174639074,-500.0,0.00024047,2]
[385990435,1758174639083,-500.0,0.00024047,2]
[385990436,1758174639092,-508.36136185,0.00024048,3]
[385990437,1758174639103,-480.0,0.00024048,3]
[385990438,1758174639112,-578.67,0.00024048,3]
[385990439,1758174639121,-480.0,0.00024048,3]
[385990440,1758174639132,-480.0,0.00024048,3]
[385990441,1758174639141,-3601.58,0.00024048,3]
[385990442,1758174639150,-480.0,0.00024048,3]
[385990443,1758174639159,-480.0,0.00024048,3]
[385990444,1758174639169,-483.32,0.00024048,3]
[385990445,1758174639178,-500.0,0.00024073,2]
[385990446,1758174639187,-500.0,0.00024073,2]
[385990447,1758174639196,-500.0,0.00024073,2]
[385990448,1758174639205,-500.0,0.00024073,2]
[385990449,1758174639214,-450.63404352,0.00024152,2]
[385990450,1758174639223,-181.46592688,0.00024223,2]
[385990451,1758174639232,-181.46592686,0.00024291,2]
[385990452,1758174639241,-552.71,0.00024321,3]
[385990453,1758174639250,-386.34322843,0.00024322,3]
[385990454,1758174639259,-578.67,0.00024322,3]
[385990455,1758174639268,-480.0,0.00024322,3]
[385990456,1758174639277,-480.0,0.00024322,3]
[385990457,1758174639286,-3601.58,0.00024322,3]
[385990459,1758174639295,-480.0,0.00024322,3]
[385990460,1758174639304,-514.06,0.00024322,3]
[385990461,1758174639313,-483.32,0.00024322,3]
[385990462,1758174639321,-151.0,0.00024337,3]
[385990463,1758174639330,-181.46592686,0.0002436,2]
[385990464,1758174639339,-181.46592686,0.00024428,2]
[385990465,1758174639348,-500.0,0.00024473,2]
[385990466,1758174639357,-500.0,0.00024473,2]
[385990467,1758174639366,-151.0,0.00024482,2]
[385990468,1758174639375,-151.0,0.00024482,2]
[385990469,1758174639385,-151.0,0.00024482,2]
[385990470,1758174639394,-515.6138429,0.00024482,2]
[385990471,1758174639403,-500.0,0.00024482,2]
[385990472,1758174639412,-184.80025285,0.00024482,2]
[385990473,1758174639421,-500.0,0.00024482,2]
[385990474,1758174639430,-500.0,0.00024482,2]
[385990475,1758174639439,-500.0,0.00024482,2]
[385990476,1758174639448,-500.0,0.00024482,2]
[385990477,1758174639458,-190.93,0.00024487,3]
[385990478,1758174639467,-572.83,0.00024487,3]
[385990479,1758174639476,-356.30377485,0.00024496,2]
[385990480,1758174639485,-205.22512564,0.00024496,2]
[385990482,1758174639494,-150.0,0.00024496,2]
[385990483,1758174639503,-181.46592686,0.00024496,2]
[385990484,1758174639512,-3572.91037764,0.00024496,2]
[385990485,1758174639526,-1464.97,0.00024496,2]
[385990486,1758174639535,-19691.90733491,0.00024497,2]
[385990487,1758174639547,-2391.26183636,0.00024497,2]
[385990488,1758174639609,-3065.0469584,0.00024497,2]
[385990489,1758174639620,-12158.6872,0.00024497,2]
[385990490,1758174639631,-332693.09667033,0.00024497,2]
[385990491,1758174639640,-552.71,0.00024595,3]
[385990492,1758174639652,-578.67,0.00024596,3]
[385990493,1758174639661,-480.0,0.00024596,3]
[385990494,1758174639671,-480.0,0.00024596,3]
[385990495,1758174639680,-3601.58,0.00024596,3]
[385990496,1758174639690,-480.0,0.00024596,3]
[385990497,1758174639699,-483.32,0.00024596,3]
[385990498,1758174639708,-245.0,0.00024611,3]
[385990499,1758174639718,-1000.0,0.00024621,2]
[385990500,1758174639728,-887.09696802,0.00024621,2]
[385990501,1758174639737,-151.0,0.00024658,2]
[385990502,1758174639746,-981.328,0.00024683,2]
[385990503,1758174639756,-2166.924,0.00024683,2]
[385990505,1758174639765,-636.852,0.00024683,2]
[385990507,1758174639775,-160.0,0.00024703,2]
[385990509,1758174639784,-900.0,0.00024712,2]
[385990511,1758174639793,-172.687,0.00024863,8]
[385990513,1758174639802,-552.71,0.00024869,3]
[385990515,1758174639812,-578.67,0.0002487,3]
[385990517,1758174639821,-480.0,0.0002487,3]
[385990518,1758174639831,-151.0,0.0002487,7]
[385990519,1758174639839,-151.0,0.0002487,7]
[385990520,1758174639939,-480.0,0.0002487,3]
[385990521,1758174639950,-3601.58,0.0002487,3]
[385990522,1758174639959,-480.0,0.0002487,3]
[385990523,1758174639969,-483.32,0.0002487,3]
[385990524,1758174639978,-500.0,0.00024873,2]
[385990525,1758174639987,-500.0,0.00024873,2]
[385990526,1758174639996,-501.46379598,0.00024873,2]
[385990527,1758174640005,-501.07766424,0.00024873,2]
[385990528,1758174640014,-500.27621588,0.00024873,2]
[385990529,1758174640024,-500.0,0.00024873,2]
[385990530,1758174640033,-501.95474255,0.00024873,2]
[385990531,1758174640043,-500.0,0.00024873,2]
[385990532,1758174640052,-265.17340167,0.00024873,2]
[385990533,1758174640065,-201.47222551,0.00024875,2]
[385990535,1758174640074,-160.0,0.00024881,3]
[385990537,1758174640083,-166.978837,0.00024892,2]
[385990539,1758174640092,-428.29861757,0.000249,2]
[385990541,1758174640102,-562042.75965178,0.000249,2]
[385990553,1758174640274,-1577.56203235,0.000249,2]
[385990554,1758174640333,-167587.49847587,0.000249,2]
[385990555,1758174640343,-501.30515149,0.00024973,2]
[385990556,1758174640352,-150000.0,0.00024973,2]
[385990557,1758174640361,-53334.21755684,0.00024973,2]
[385990586,1758174640675,-884.59012357,0.00024973,2]
[385990588,1758174640689,-5380.63867796,0.00024973,2]
[385990693,1758174675070,201.47222551,0.0002175,2]
[385990694,1758174714049,9609.91693862,0.00030346,50]
[385990695,1758174794306,-293.42237991,0.00023499,3]
[385990696,1758174796860,209.18030641,0.00022867,2]
[385990697,1758174796885,790.81969359,0.00022867,2]
[385990699,1758174853595,201.47222551,0.0002175,2]
[385990700,1758174867677,-186.57762009,0.00023499,3]
[385990701,1758174867701,-113.92861042,0.00023499,3]
[385990702,1758174870895,-366.07138958,0.00023499,3]
[385990703,1758174870919,-74.05884738,0.00023499,3]
[385990704,1758174874350,-166.66666667,0.00023499,3]
[385990705,1758174875904,-163.27744421,0.00023499,3]
[385990706,1758174880850,-75.99704174,0.00023499,3]
[385990707,1758174880873,-300.0,0.00023499,2]
[385990708,1758174880898,-211.84545091,0.000235,3]
[385990709,1758174885721,-196.91157007,0.000235,3]
[385990710,1758174887814,-431.86119454,0.000235,3]
[385990711,1758174894373,-165.77456623,0.000235,3]
[385990717,1758175039640,201.47222551,0.0002175,2]
[385990720,1758175123871,10000.0,0.0002284,2]
[385990721,1758175217983,201.47222551,0.0002175,2]
[385990722,1758175244434,13786.0199489,0.00023015,2]
[385990724,1758175405457,201.47222551,0.0002175,2]
[385990727,1758175483366,-173.39103018,0.00023497,2]
[385990728,1758175486784,-154.59375582,0.00023497,2]
[385990729,1758175512454,-255.78720681,0.00023498,2]
[385990730,1758175515043,-166.080724,0.00023498,2]
[385990747,1758175584952,201.47222551,0.0002175,2]
[385990750,1758175647901,181.667194,0.0002285,2]
[385990751,1758175672483,500.0,0.000228,2]
[385990752,1758175684372,500.0,0.000228,2]
[385990753,1758175696076,500.0,0.000228,2]
[385990754,1758175771234,201.47222551,0.0002175,2]
[385990755,1758175820780,260.185724,0.00022917,2]
[385990765,1758175838055,-78.13206919,0.00023498,2]
[385990767,1758175838065,-500.0,0.000235,2]
[385990769,1758175838075,-451.98587672,0.00023848,2]
[385990771,1758175838084,-1200.0,0.00023871,2]
[385990773,1758175838093,-300.0,0.00023872,2]
[385990775,1758175838102,-300.0,0.00023872,2]
[385990777,1758175838112,-300.0,0.00023872,2]
[385990779,1758175838121,-300.0,0.00023872,2]
[385990781,1758175838130,-161.16784892,0.00023873,2]
[385990783,1758175838139,-155.80580807,0.00023935,2]
[385990785,1758175838149,-151.0,0.00023935,2]
[385990787,1758175838158,-151.0,0.00023935,2]
[385990789,1758175838167,-153.78248679,0.00023935,2]
[385990791,1758175838176,-381.86,0.00023939,3]
[385990794,1758175838186,-1250.45,0.00023947,3]
[385990796,1758175838195,-480.0,0.00023947,3]
[385990798,1758175838204,-480.0,0.00023947,3]
[385990800,1758175838214,-480.0,0.00023947,3]
[385990802,1758175838223,-3001.32,0.00023947,3]
[385990804,1758175838232,-484.76661519,0.00023947,3]
[385990806,1758175838241,-480.0,0.00023947,3]
[385990808,1758175838251,-480.0,0.00023947,3]
[385990810,1758175838260,-487.94224874,0.00023947,3]
[385990812,1758175838270,-480.0,0.00023947,3]
[385990814,1758175838279,-1403.93,0.00023948,2]
[385990816,1758175838289,-352.34247759,0.00023948,2]
[385990818,1758175838298,-202.73349862,0.00023948,2]
[385990820,1758175838307,-500.0,0.00023948,2]
[385990822,1758175838317,-500.0,0.00023948,2]
[385990824,1758175838326,-500.0,0.00023948,2]
[385990826,1758175838336,-500.0,0.00023948,2]
[385990828,1758175838346,-500.0,0.00023948,2]
[385990830,1758175838355,-500.0,0.00023948,2]
[385990832,1758175838365,-500.0,0.00023948,2]
[385990834,1758175838374,-500.0,0.00023948,2]
[385990836,1758175838384,-500.0,0.00023948,2]
[385990838,1758175838393,-500.0,0.00023948,2]
[385990840,1758175838403,-500.0,0.00023948,2]
[385990842,1758175838412,-177.76237682,0.00023948,2]
[385990844,1758175838421,-500.0,0.00023948,2]
[385990846,1758175838431,-500.0,0.00023948,2]
[385990848,1758175838440,-322.82527473,0.00023948,2]
[385990850,1758175838449,-500.0,0.00023948,2]
[385990852,1758175838458,-500.0,0.00023948,2]
[385990854,1758175838467,-500.0,0.00023948,2]
[385990856,1758175838476,-500.0,0.00023948,2]
[385990858,1758175838485,-500.0,0.00023948,2]
[385990860,1758175838495,-500.0,0.00023948,2]
[385990862,1758175838504,-500.0,0.00023948,2]
[385990864,1758175838513,-500.0,0.00023948,2]
[385990866,1758175838522,-500.0,0.00023948,2]
[385990868,1758175838532,-500.0,0.00023948,2]
[385990870,1758175838541,-500.0,0.00023948,2]
[385990872,1758175838550,-500.0,0.00023948,2]
[385990874,1758175838560,-160.43052283,0.00023948,2]
[385990876,1758175838570,-500.0,0.00023948,2]
[385990878,1758175838580,-500.0,0.00023948,2]
[385990880,1758175838589,-500.0,0.00023948,2]
[385990882,1758175838601,-500.0,0.00023948,2]
[385990884,1758175838610,-500.0,0.00023948,2]
[385990886,1758175838619,-500.0,0.00023948,2]
[385990888,1758175838628,-500.0,0.00023948,2]
[385990890,1758175838639,-500.0,0.00023948,2]
[385990892,1758175838648,-500.0,0.00023948,2]
[385990894,1758175838657,-157.90688247,0.00023948,2]
[385990896,1758175838667,-500.0,0.00023948,2]
[385990898,1758175838676,-500.0,0.00023948,2]
[385990900,1758175838686,-500.0,0.00023948,2]
[385990902,1758175838695,-500.0,0.00023948,2]
[385990904,1758175838705,-500.0,0.00023948,2]
[385990906,1758175838715,-500.0,0.00023948,2]
[385990908,1758175838725,-500.0,0.00023948,2]
[385990910,1758175838734,-500.0,0.00023948,2]
[385990912,1758175838743,-5.31391876,0.00023948,2]
[385990917,1758175838779,-494.68608124,0.00023948,2]
[385990919,1758175838789,-500.0,0.00023948,2]
[385990921,1758175838798,-500.0,0.00023948,2]
[385990923,1758175838809,-500.0,0.00023948,2]
[385990925,1758175838819,-500.0,0.00023948,2]
[385990927,1758175838828,-500.0,0.00023948,2]
[385990929,1758175838837,-500.0,0.00023948,2]
[385990931,1758175838847,-500.0,0.00023948,2]
[385990933,1758175838856,-500.0,0.00023948,2]
[385990935,1758175838865,-500.0,0.00023948,2]
[385990937,1758175838875,-500.0,0.00023948,2]
[385990939,1758175838884,-500.0,0.00023948,2]
[385990941,1758175838894,-500.0,0.00023948,2]
[385990943,1758175838903,-500.0,0.00023948,2]
[385990945,1758175838913,-500.0,0.00023948,2]
[385990947,1758175838922,-500.0,0.00023948,2]
[385990949,1758175838931,-500.0,0.00023948,2]
[385990951,1758175838941,-500.0,0.00023948,2]
[385990953,1758175838950,-500.0,0.00023948,2]
[385990955,1758175838959,-500.0,0.00023948,2]
[385990957,1758175838968,-500.0,0.00023948,2]
[385990959,1758175838977,-500.0,0.00023948,2]
[385990961,1758175838986,-500.0,0.00023948,2]
[385990963,1758175838995,-446.95133761,0.00023948,2]
[385990965,1758175839006,-500.0,0.00023948,2]
[385990967,1758175839015,-500.0,0.00023948,2]
[385990968,1758175839024,-500.0,0.00023948,2]
[385990970,1758175839033,-500.0,0.00023948,2]
[385990972,1758175839042,-500.0,0.00023948,2]
[385990974,1758175839051,-500.0,0.00023948,2]
[385990976,1758175839060,-500.0,0.00023948,2]
[385990978,1758175839069,-500.0,0.00023948,2]
[385990980,1758175839078,-500.0,0.00023948,2]
[385990982,1758175839087,-500.0,0.00023948,2]
[385990985,1758175839097,-500.0,0.00023948,2]
[385990987,1758175839106,-600.00000001,0.00023948,2]
[385990989,1758175839116,-46132.99680929,0.00023949,2]
[385990991,1758175839127,-83154.89646781,0.00023949,2]
[385990993,1758175839138,-240712.1067229,0.00023949,2]
[385990995,1758175839148,-500.0,0.00023973,2]
[385990997,1758175839157,-500.0,0.00023973,2]
[385990999,1758175839166,-100000.0,0.0002399,2]
[385991001,1758175839175,-150.0,0.00024109,2]
[385991003,1758175839184,-1250.45,0.00024221,3]
[385991005,1758175839193,-480.0,0.00024221,3]
[385991007,1758175839202,-480.0,0.00024221,3]
[385991009,1758175839211,-480.0,0.00024221,3]
[385991011,1758175839220,-3001.32,0.00024221,3]
[385991013,1758175839230,-480.0,0.00024221,3]
[385991015,1758175839239,-480.0,0.00024221,3]
[385991017,1758175839249,-410.51619314,0.00024223,2]
[385991019,1758175839259,-245.0,0.00024337,3]
[385991021,1758175839269,-1250.45,0.00024495,3]
[385991023,1758175839278,-480.0,0.00024495,3]
[385991025,1758175839287,-480.0,0.00024495,3]
[385991027,1758175839296,-480.0,0.00024495,3]
[385991029,1758175839306,-3001.32,0.00024495,3]
[385991031,1758175839316,-480.0,0.00024495,3]
[385991044,1758175839421,-480.0,0.00024495,3]
[385991046,1758175839433,-1000.0,0.00024521,2]
[385991048,1758175839442,-1000.0,0.00024521,2]
[385991050,1758175839451,-265.1217573,0.00024596,2]
[385991052,1758175839460,-981.328,0.00024646,2]
[385991054,1758175839470,-636.852,0.00024646,2]
[385991056,1758175839479,-2166.924,0.00024646,2]
[385991058,1758175839488,-151.0,0.00024658,2]
[385991060,1758175839497,-160.0,0.00024665,2]
[385991062,1758175839507,-150.0,0.00024683,2]
[385991064,1758175839517,-410.0,0.00024694,2]
[385991066,1758175839526,-900.0,0.00024712,2]
[385991068,1758175839536,-1250.45,0.00024769,3]
[385991070,1758175839545,-480.0,0.00024769,3]
[385991072,1758175839555,-527.71162636,0.00024769,3]
[385991074,1758175839564,-596.86113274,0.00024769,3]
[385991076,1758175839573,-3001.32,0.00024769,3]
[385991078,1758175839582,-480.0,0.00024769,3]
[385991080,1758175839592,-480.0,0.00024769,3]
[385991082,1758175839608,-500.0,0.00024773,2]
[385991084,1758175839617,-5289.4340818,0.00024802,2]
[385991086,1758175839627,-166.9788371,0.00024802,2]
[385991088,1758175839637,-172.687,0.00024859,8]
[385991090,1758175839648,-500.0,0.00024873,2]
[385991092,1758175839657,-500.0,0.00024873,2]
[385991094,1758175839666,-501.2164168,0.00024873,2]
[385991096,1758175839676,-503.96400476,0.00024873,2]
[385991098,1758175839686,-504.0000743,0.00024873,2]
[385991100,1758175839695,-500.0,0.00024873,2]
[385991102,1758175839705,-509.09059891,0.00024873,2]
[385991105,1758175839714,-500.0,0.00024873,2]
[385991106,1758175839724,-503.49402217,0.00024873,2]
[385991109,1758175839737,-160.67374199,0.00024873,2]
[385991111,1758175839747,-500.0,0.00024873,2]
[385991113,1758175839758,-500.0,0.00024873,2]
[385991114,1758175839767,-500.0,0.00024873,2]
[385991115,1758175839776,-47439.42998774,0.00024873,2]
[385991116,1758175839786,-151.0,0.000249,7]
[385991117,1758175839795,-151.0,0.000249,7]
[385991118,1758175839804,-706497.554588,0.000249,2]
[385991119,1758175839814,-160.0,0.00024928,2]
[385991120,1758175839823,-504.1962342,0.00024938,2]
[385991121,1758175839832,-1847.0,0.00024991,2]
[385991122,1758175839841,-154.0,0.00025,2]
[385991123,1758175839851,-417.15472785,0.00025,10]
[385991124,1758175839859,-1250.45,0.00025043,3]
[385991125,1758175839869,-480.0,0.00025043,3]
[385991126,1758175839878,-3001.32,0.00025043,3]
[385991127,1758175839887,-480.0,0.00025043,3]
[385991128,1758175839897,-480.0,0.00025043,3]
[385991129,1758175839906,-315.0,0.00025068,15]
[385991130,1758175839915,-808.64117626,0.00025068,2]
[385991131,1758175839925,-590.01102934,0.00025068,2]
[385991132,1758175839935,-160.0,0.00025155,2]
[385991133,1758175839944,-160.0,0.00025156,2]
[385991134,1758175839954,-160.0,0.00025156,2]
[385991135,1758175839964,-1250.45,0.00025317,3]
[385991137,1758175839973,-480.0,0.00025317,3]
[385991138,1758175839982,-3001.32,0.00025317,3]
[385991140,1758175839992,-480.0,0.00025317,3]
[385991141,1758175840000,-480.0,0.00025317,3]
[385991142,1758175840011,-2381.94025176,0.00025401,2]
[385991143,1758175840020,-1000.0,0.00025421,2]
[385991144,1758175840030,-583.32234658,0.00025421,2]
[385991146,1758175840039,-226.75007981,0.00025421,2]
[385991148,1758175840048,-1000.0,0.00025421,2]
[385991150,1758175840058,-1000.0,0.00025421,2]
[385991151,1758175840067,-1109.36641102,0.00025421,2]
[385991153,1758175840076,-387.09696802,0.00025421,2]
[385991154,1758175840085,-260.0,0.00025476,2]
[385991156,1758175840093,-1250.45,0.00025591,3]
[385991157,1758175840102,-480.0,0.00025591,3]
[385991159,1758175840111,-3001.32,0.00025591,3]
[385991160,1758175840120,-480.0,0.00025591,3]
[385991161,1758175840129,-480.0,0.00025591,3]
[385991162,1758175840138,-160.0,0.00025639,2]
[385991163,1758175840147,-160.0,0.00025641,2]
[385991165,1758175840156,-160.0,0.00025642,2]
[385991167,1758175840165,-160.0,0.00025642,2]
[385991168,1758175840174,-160.0,0.00025642,2]
[385991169,1758175840183,-168.0,0.00025753,2]
[385991170,1758175840192,-151.23981477,0.00025773,2]
[385991171,1758175840200,-8614.1885569,0.000258,2]
[385991176,1758175841450,-4892.7999998,0.000258,2]
[385991177,1758175841731,-0.00295022,0.000258,2]
[385991192,1758175843611,-1326.11931829,0.000258,2]
[385991226,1758175846494,-641.43899706,0.000258,2]
[385991237,1758175846610,-707.121888,0.000258,2]
[385991244,1758175846670,-514.809326,0.000258,2]
[385991246,1758175846682,-1410.29848963,0.000258,2]
[385992378,1758175858219,-260.57225346,0.00023947,3]
[385992442,1758175858857,153.94865009,0.00024925,2]
[385993614,1758175951497,204.45040162,0.0002175,2]
[385993615,1758176013489,202.6026863,0.00022873,2]
[385993618,1758176138553,204.4504016,0.0002175,2]
[385993620,1758176323138,204.4504016,0.0002175,2]
[385993622,1758176428981,472.4338658,0.00023,2]
[385993624,1758176476235,167.124935,0.00011423,2]
[385993627,1758176503331,204.4504016,0.0002175,2]
[385993628,1758176578213,-265.1217573,0.000238,2]
[385993629,1758176578240,-34.8782427,0.00023839,3]
[385993630,1758176603036,159.54573357,0.00023132,2]
[385993631,1758176683174,204.4504016,0.0002175,2]
[385993639,1758176968273,-276.73849027,0.00023746,2]
[385993641,1758176974728,1042.6509866,0.00022845,2]
[385993644,1758176977074,-291.21292223,0.00023746,2]
[385993645,1758176977101,-39.72807805,0.00023773,2]
[385993646,1758176983502,-181.34679544,0.00023773,2]
[385993647,1758176986446,-185.4795985,0.00023773,2]
[385993648,1758176988055,-227.00801504,0.00023773,2]
[385993649,1758176993108,-206.78075395,0.00023773,2]
[385993650,1758176996080,-367.89372861,0.00023773,2]
[385993651,1758176999931,-448.13803104,0.00023773,2]
[385993652,1758177002886,-213.58288526,0.00023773,2]
[385993653,1758177006559,-355.6001215,0.00023773,2]
[385993654,1758177008737,-156.38224437,0.00023773,2]
[385993655,1758177008761,-48.11076394,0.00023839,3]
[385993656,1758177020643,-284.35414658,0.00023839,3]
[385993657,1758177022469,-162.79375803,0.00023839,3]
[385993658,1758177024691,-307.20133145,0.00023839,3]
[385993659,1758177024715,-11.96470995,0.00023843,2]
[385993676,1758177032525,-433.72643439,0.00023843,2]
[385993682,1758177032707,-754.30885566,0.00023843,2]
[385993683,1758177032717,-1200.0,0.00023843,2]
[385993684,1758177032727,-300.0,0.00023844,2]
[385993685,1758177032737,-300.0,0.00023844,2]
[385993686,1758177032746,-300.0,0.00023844,2]
[385993688,1758177032756,-300.0,0.00023844,2]
[385993690,1758177032765,-618.40556865,0.00023845,2]
[385993692,1758177032775,-481.80706522,0.00023845,3]
[385993693,1758177032784,-480.0,0.00023845,3]
[385993694,1758177032793,-480.0,0.00023845,3]
[385993695,1758177032802,-494.316943,0.00023845,3]
[385993696,1758177032812,-480.0,0.00023845,3]
[385993697,1758177032821,-480.0,0.00023845,3]
[385993698,1758177032830,-480.0,0.00023845,3]
[385993699,1758177032840,-480.0,0.00023845,3]
[385993700,1758177032849,-565.18328205,0.00023845,3]
[385993701,1758177032859,-480.0,0.00023845,3]
[385993702,1758177032868,-529.76705746,0.00023846,3]
[385993703,1758177032878,-490.27859517,0.00023846,3]
[385993704,1758177032887,-570.75642483,0.00023846,3]
[385993705,1758177032897,-173.05367466,0.00023846,3]
[385993706,1758177032906,-480.0,0.00023846,3]
[385993707,1758177032916,-480.0,0.00023846,3]
[385993708,1758177032925,-480.0,0.00023846,3]
[385993709,1758177032934,-480.0,0.00023846,3]
[385993710,1758177032943,-480.0,0.00023846,3]
[385993711,1758177032952,-480.0,0.00023846,3]
[385993712,1758177032961,-480.0,0.00023846,3]
[385993713,1758177032970,-480.0,0.00023846,3]
[385993714,1758177032979,-480.0,0.00023846,3]
[385993715,1758177032989,-480.0,0.00023846,3]
[385993716,1758177032998,-480.0,0.00023846,3]
[385993717,1758177033007,-480.0,0.00023846,3]
[385993718,1758177033016,-489.40659412,0.00023846,3]
[385993719,1758177033025,-480.0,0.00023846,3]
[385993720,1758177033035,-472.9391198,0.00023846,3]
[385993721,1758177033044,-480.0,0.00023846,3]
[385993722,1758177033053,-480.0,0.00023846,3]
[385993723,1758177033063,-1146.25,0.00023846,3]
[385993724,1758177033073,-480.0,0.00023846,3]
[385993725,1758177033082,-499.03421036,0.00023846,3]
[385993726,1758177033092,-480.0,0.00023846,3]
[385993727,1758177033102,-480.0,0.00023846,3]
[385993728,1758177033115,-480.0,0.00023846,3]
[385993729,1758177033125,-480.0,0.00023846,3]
[385993730,1758177033135,-480.0,0.00023846,3]
[385993731,1758177033144,-480.0,0.00023846,3]
[385993732,1758177033154,-431.80795591,0.00023846,3]
[385993733,1758177033164,-480.0,0.00023846,3]
[385993734,1758177033173,-480.0,0.00023846,3]
[385993735,1758177033183,-480.0,0.00023846,3]
[385993736,1758177033193,-480.0,0.00023846,3]
[385993737,1758177033203,-2927.8,0.00023846,3]
[385993738,1758177033212,-480.0,0.00023846,3]
[385993739,1758177033221,-480.2415451,0.00023846,3]
[385993740,1758177033230,-480.0,0.00023846,3]
[385993741,1758177033239,-480.0,0.00023846,3]
[385993742,1758177033249,-480.0,0.00023846,3]
[385993743,1758177033258,-480.0,0.00023846,3]
[385993744,1758177033269,-480.0,0.00023846,3]